fUSD/lending_fUSD_20250724
["ID","MTS","AMOUNT","RATE_DAILY","PERIOD"]
[374596129,1753368644122,-151.0,0.00034475,7]
[374596130,1753368644132,-151.0,0.00034475,7]
[374596131,1753368644142,-151.0,0.00034475,7]
[374596132,1753368644153,-168.0,0.00034493,2]
[374596133,1753368644165,-50000.0,0.000345,11]
[374596134,1753368644175,-2155.1,0.000345,7]
[374596135,1753368644185,-282.96,0.000345,14]
[374596136,1753368644195,-1000.0,0.000345,120]
[374596137,1753368644205,-1000.0,0.000345,120]
[374596138,1753368644215,-1000.0,0.000345,120]
[374596139,1753368644225,-938.15146195,0.000345,120]
[374596140,1753368644234,-250.0,0.00034518,30]
[374596141,1753368644244,-787.87658053,0.00034518,30]
[374596142,1753368644253,-1256.95,0.00034527,30]
[374596143,1753368644263,-1256.95,0.00034527,30]
[374596144,1753368644272,-150.0,0.00034539,2]
[374596145,1753368644282,-150.0,0.00034561,2]
[374596158,1753368644624,-50000.0,0.000346,12]
[374596159,1753368644635,-150.0,0.00034607,2]
[374596160,1753368644645,-32685.14884849,0.0003465,2]
[374596161,1753368644655,-383.31534771,0.0003465,2]
[374596162,1753368644665,-7000.0,0.0003465,2]
[374596163,1753368644675,-150.0,0.00034672,2]
[374596164,1753368644685,-168.0,0.00034683,2]
[374596165,1753368644695,-150.0,0.00034683,2]
[374596166,1753368644704,-941.92,0.00034685,2]
[374596167,1753368644714,-157.0,0.00034687,7]
[374596168,1753368644724,-153.0,0.00034687,7]
[374596169,1753368644734,-154.75779487,0.00034687,7]
[374596170,1753368644744,-153.0,0.00034687,7]
[374596171,1753368644754,-1211.0,0.00034687,7]
[374596172,1753368644764,-1211.0,0.00034687,7]
[374596173,1753368644774,-1268.44684366,0.00034687,7]
[374596174,1753368644784,-154.0,0.00034687,7]
[374596175,1753368644794,-154.0,0.00034687,7]
[374596176,1753368644805,-169.56542171,0.00034687,7]
[374596177,1753368644814,-157.0,0.00034691,5]
[374596178,1753368644824,-150.0,0.00034694,2]
[374596179,1753368644834,-150.0,0.00034695,2]
[374596180,1753368644843,-150.0,0.00034698,2]
[374596181,1753368644853,-50000.0,0.000347,13]
[374596182,1753368644863,-300.0,0.000347,10]
[374596183,1753368644873,-300.0,0.000347,10]
[374596184,1753368644885,-3300.0,0.000347,12]
[374596185,1753368644896,-1400.0,0.000347,7]
[374596186,1753368644907,-2258.87,0.000347,7]
[374596187,1753368644916,-150.0,0.00034703,2]
[374596188,1753368644927,-150.0,0.00034703,2]
[374596189,1753368644936,-200.0,0.0003472,10]
[374596190,1753368644947,-2456.78322408,0.00034725,2]
[374596191,1753368644956,-150.0,0.00034735,2]
[374596192,1753368644967,-150.0,0.00034743,2]
[374596193,1753368644977,-300.0,0.00034744,2]
[374596194,1753368644987,-151.0,0.00034773,7]
[374596195,1753368644996,-168.0,0.00034783,7]
[374596196,1753368645006,-150.0,0.00034786,2]
[374596198,1753368645015,-150.0,0.00034795,2]
[374596200,1753368645025,-150.0,0.00034795,2]
[374596202,1753368645034,-256.54055567,0.00034795,2]
[374596203,1753368645044,-150.0,0.00034795,2]
[374596204,1753368645055,-201.0075076,0.00034795,2]
[374596205,1753368645064,-150.0,0.00034795,2]
[374596206,1753368645074,-239.93815389,0.00034795,2]
[374596207,1753368645084,-500.0,0.00034795,2]
[374596208,1753368645094,-500.0,0.00034795,2]
[374596209,1753368645103,-150.0,0.00034795,2]
[374596210,1753368645113,-500.0,0.00034795,2]
[374596211,1753368645123,-150.0,0.00034795,2]
[374596212,1753368645133,-150.0,0.00034795,2]
[374596213,1753368645142,-150.0,0.00034795,2]
[374596214,1753368645152,-150.0,0.00034795,2]
[374596215,1753368645161,-203.42178281,0.00034795,2]
[374596216,1753368645170,-150.0,0.00034795,2]
[374596217,1753368645180,-150.0,0.00034795,2]
[374596218,1753368645189,-150.0,0.00034795,2]
[374596219,1753368645199,-200.0,0.00034795,2]
[374596220,1753368645209,-500.0,0.00034795,2]
[374596221,1753368645218,-200.0,0.00034795,2]
[374596222,1753368645228,-200.0,0.00034795,2]
[374596223,1753368645237,-150.0,0.00034795,2]
[374596224,1753368645247,-150.0,0.00034795,2]
[374596225,1753368645257,-500.0,0.00034795,2]
[374596226,1753368645267,-50000.0,0.000348,14]
[374596227,1753368645277,-314558.39406409,0.000348,7]
[374596228,1753368645286,-151.0,0.000348,7]
[374596229,1753368645296,-2000.0,0.000348,2]
[374596230,1753368645307,-4200.0,0.000348,12]
[374596231,1753368645316,-1256.95,0.00034801,30]
[374596232,1753368645326,-1256.95,0.00034801,30]
[374596233,1753368645336,-151.0,0.00034805,7]
[374596234,1753368645346,-743.393678,0.00034805,7]
[374596235,1753368645356,-743.393678,0.00034805,7]
[374596236,1753368645366,-1860.0,0.0003482,2]
[374596237,1753368645376,-634.68123387,0.0003482,2]
[374596238,1753368645385,-708.28,0.00034822,2]
[374596239,1753368645395,-150.0,0.00034822,2]
[374596240,1753368645406,-1176.21,0.00034822,2]
[374596241,1753368645415,-333.75,0.00034822,2]
[374596242,1753368645425,-448.69,0.00034822,2]
[374596243,1753368645435,-358.19,0.00034822,2]
[374596244,1753368645444,-358.19,0.00034822,2]
[374596245,1753368645455,-150.0,0.00034822,2]
[374596246,1753368645464,-917.36,0.00034822,2]
[374596247,1753368645474,-329.54,0.00034822,2]
[374596248,1753368645484,-1176.21,0.00034822,2]
[374596249,1753368645494,-150.0,0.00034822,2]
[374596250,1753368645503,-358.19,0.00034822,2]
[374596251,1753368645513,-353.07,0.00034822,2]
[374596252,1753368645522,-300.81,0.00034822,2]
[374596253,1753368645533,-150.0,0.00034822,2]
[374596254,1753368645543,-938.86,0.00034822,2]
[374596255,1753368645556,-1176.21,0.00034822,2]
[374596256,1753368645566,-358.19,0.00034822,2]
[374596257,1753368645576,-150.0,0.00034822,2]
[374596258,1753368645585,-172.46,0.00034822,2]
[374596259,1753368645595,-150.0,0.00034822,2]
[374596260,1753368645605,-1176.21,0.00034822,2]
[374596261,1753368645614,-172.46,0.00034822,2]
[374596262,1753368645624,-153.69,0.00034822,2]
[374596263,1753368645634,-358.19,0.00034822,2]
[374596264,1753368645643,-150.0,0.00034822,2]
[374596265,1753368645653,-172.46,0.00034822,2]
[374596266,1753368645663,-346.84,0.00034822,2]
[374596267,1753368645672,-1176.21,0.00034822,2]
[374596268,1753368645687,-150.0,0.00034822,2]
[374596269,1753368645696,-358.19,0.00034822,2]
[374596270,1753368645706,-150.0,0.00034822,2]
[374596271,1753368645715,-1176.21,0.00034822,2]
[374596272,1753368645726,-175.46,0.00034822,2]
[374596273,1753368645735,-358.19,0.00034822,2]
[374596274,1753368645745,-150.0,0.00034822,2]
[374596275,1753368645755,-358.19,0.00034822,2]
[374596276,1753368645764,-1000.0,0.00034825,2]
[374596277,1753368645774,-1000.0,0.00034825,2]
[374596278,1753368645783,-1000.0,0.00034825,2]
[374596279,1753368645793,-1000.0,0.00034825,2]
[374596280,1753368645803,-1000.0,0.00034825,2]
[374596281,1753368645813,-1000.0,0.00034825,2]
[374596282,1753368645823,-1000.0,0.00034825,2]
[374596283,1753368645833,-1000.0,0.00034825,2]
[374596284,1753368645843,-1000.0,0.00034825,2]
[374596285,1753368645852,-1000.0,0.00034825,2]
[374596286,1753368645862,-1000.0,0.00034825,2]
[374596287,1753368645872,-1000.0,0.00034825,2]
[374596288,1753368645886,-1000.0,0.00034825,2]
[374596289,1753368645895,-1000.0,0.00034825,2]
[374596290,1753368645905,-1000.0,0.00034825,2]
[374596291,1753368645915,-1000.0,0.00034825,2]
[374596292,1753368645925,-1000.0,0.00034825,2]
[374596293,1753368645935,-1000.0,0.00034825,2]
[374596294,1753368645945,-1000.0,0.00034825,2]
[374596295,1753368645955,-1000.0,0.00034825,2]
[374596296,1753368645964,-1000.0,0.00034825,2]
[374596297,1753368645975,-221.7483,0.00034825,2]
[374596298,1753368645984,-1000.0,0.00034825,2]
[374596299,1753368645994,-1000.0,0.00034825,2]
[374596300,1753368646004,-1000.0,0.00034825,2]
[374596301,1753368646013,-1000.0,0.00034825,2]
[374596302,1753368646023,-1000.0,0.00034825,2]
[374596303,1753368646033,-1000.0,0.00034825,2]
[374596304,1753368646043,-1000.0,0.00034825,2]
[374596305,1753368646053,-1000.0,0.00034825,2]
[374596306,1753368646065,-1000.0,0.00034825,2]
[374596307,1753368646075,-1000.0,0.00034825,2]
[374596308,1753368646085,-1000.0,0.00034825,2]
[374596309,1753368646098,-1000.0,0.00034825,2]
[374596310,1753368646108,-1000.0,0.00034825,2]
[374596311,1753368646118,-1000.0,0.00034825,2]
[374596313,1753368646127,-1000.0,0.00034825,2]
[374596315,1753368646137,-1000.0,0.00034825,2]
[374596317,1753368646146,-1000.0,0.00034825,2]
[374596319,1753368646156,-1000.0,0.00034825,2]
[374596320,1753368646165,-1000.0,0.00034825,2]
[374596321,1753368646174,-1000.0,0.00034825,2]
[374596322,1753368646184,-1000.0,0.00034825,2]
[374596323,1753368646193,-1000.0,0.00034825,2]
[374596324,1753368646203,-1000.0,0.00034825,2]
[374596325,1753368646212,-1000.0,0.00034825,2]
[374596326,1753368646222,-1000.0,0.00034825,2]
[374596327,1753368646232,-1000.0,0.00034825,2]
[374596328,1753368646242,-1000.0,0.00034825,2]
[374596329,1753368646252,-1000.0,0.00034825,2]
[374596330,1753368646262,-1000.0,0.00034825,2]
[374596331,1753368646272,-1000.0,0.00034825,2]
[374596332,1753368646282,-1000.0,0.00034825,2]
[374596333,1753368646292,-1000.0,0.00034825,2]
[374596334,1753368646303,-1000.0,0.00034825,2]
[374596335,1753368646314,-1000.0,0.00034825,2]
[374596336,1753368646324,-1000.0,0.00034825,2]
[374596337,1753368646334,-1000.0,0.00034825,2]
[374596338,1753368646343,-1000.0,0.00034825,2]
[374596339,1753368646353,-1000.0,0.00034825,2]
[374596340,1753368646364,-1000.0,0.00034825,2]
[374596341,1753368646373,-1000.0,0.00034825,2]
[374596342,1753368646383,-1000.0,0.00034825,2]
[374596343,1753368646392,-1000.0,0.00034825,2]
[374596344,1753368646402,-1000.0,0.00034825,2]
[374596345,1753368646411,-1000.0,0.00034825,2]
[374596346,1753368646421,-1000.0,0.00034825,2]
[374596347,1753368646430,-1000.0,0.00034825,2]
[374596348,1753368646441,-1000.0,0.00034825,2]
[374596349,1753368646451,-1000.0,0.00034825,2]
[374596350,1753368646461,-1000.0,0.00034825,2]
[374596351,1753368646472,-1000.0,0.00034825,2]
[374596352,1753368646482,-1000.0,0.00034825,2]
[374596353,1753368646491,-1000.0,0.00034825,2]
[374596354,1753368646500,-1000.0,0.00034825,2]
[374596355,1753368646510,-1000.0,0.00034825,2]
[374596356,1753368646519,-1000.0,0.00034825,2]
[374596357,1753368646529,-1000.0,0.00034825,2]
[374596358,1753368646539,-1000.0,0.00034825,2]
[374596359,1753368646548,-1000.0,0.00034825,2]
[374596360,1753368646559,-1000.0,0.00034825,2]
[374596361,1753368646569,-1000.0,0.00034825,2]
[374596362,1753368646578,-1000.0,0.00034825,2]
[374596363,1753368646588,-1000.0,0.00034825,2]
[374596364,1753368646598,-1000.0,0.00034825,2]
[374596365,1753368646608,-1000.0,0.00034825,2]
[374596366,1753368646618,-1000.0,0.00034825,2]
[374596368,1753368646628,-1000.0,0.00034825,2]
[374596370,1753368646638,-1000.0,0.00034825,2]
[374596372,1753368646648,-1000.0,0.00034825,2]
[374596374,1753368646657,-1000.0,0.00034825,2]
[374596376,1753368646667,-1000.0,0.00034825,2]
[374596378,1753368646677,-1000.0,0.00034825,2]
[374596380,1753368646686,-1000.0,0.00034825,2]
[374596382,1753368646696,-1000.0,0.00034825,2]
[374596384,1753368646706,-1000.0,0.00034825,2]
[374596386,1753368646716,-1000.0,0.00034825,2]
[374596388,1753368646726,-1000.0,0.00034825,2]
[374596390,1753368646736,-1000.0,0.00034825,2]
[374596392,1753368646746,-1000.0,0.00034825,2]
[374596394,1753368646755,-1000.0,0.00034825,2]
[374596396,1753368646764,-1000.0,0.00034825,2]
[374596398,1753368646774,-861.6011,0.00034825,2]
[374596400,1753368646783,-151.0,0.00034825,7]
[374596403,1753368646793,-151.0,0.00034825,7]
[374596405,1753368646802,-255.325684,0.00034825,7]
[374596407,1753368646813,-151.0,0.00034825,7]
[374596409,1753368646822,-168.0,0.00034839,2]
[374596411,1753368646831,-150.0,0.00034865,2]
[374596413,1753368646841,-150.0,0.00034866,2]
[374596416,1753368646850,-500.0,0.00034873,5]
[374596417,1753368646859,-500.0,0.00034873,5]
[374596419,1753368646869,-168.0,0.00034873,7]
[374596422,1753368646879,-7000.0,0.0003488,2]
[374596423,1753368646893,-7899.31456608,0.00034895,2]
[374596426,1753368646902,-50000.0,0.000349,15]
[374596428,1753368646913,-2155.1,0.000349,7]
[374596430,1753368646922,-282.96,0.000349,14]
[374596432,1753368646933,-204.418016,0.000349,7]
[374596434,1753368646943,-207.196132,0.000349,7]
[374596436,1753368646952,-207.196132,0.000349,7]
[374596438,1753368646964,-800.0,0.000349,12]
[374596440,1753368646976,-200.0,0.000349,10]
[374596442,1753368646986,-815.78533027,0.000349,2]
[374596444,1753368646995,-1497.16378144,0.000349,31]
[374596446,1753368647005,-1615.00424841,0.00034906,2]
[374596448,1753368647015,-2456.78322403,0.00034909,2]
[374596450,1753368647025,-150.0,0.0003492,2]
[374596452,1753368647034,-150.0,0.00034936,2]
[374596454,1753368647044,-215.317448,0.00034938,7]
[374596456,1753368647053,-215.317448,0.00034938,7]
[374596458,1753368647064,-397.362853,0.00034938,7]
[374596459,1753368647073,-151.0,0.00034938,7]
[374596461,1753368647082,-240.246392,0.00034938,7]
[374596464,1753368647092,-151.0,0.00034938,7]
[374596465,1753368647101,-151.0,0.00034938,7]
[374596468,1753368647110,-10000.0,0.00034962,2]
[374596470,1753368647120,-355.80796485,0.00034964,2]
[374596472,1753368647130,-151.0,0.0003497,7]
[374596474,1753368647139,-743.393678,0.0003497,7]
[374596476,1753368647149,-743.393678,0.0003497,7]
[374596478,1753368647158,-150.0,0.00034977,2]
[374596480,1753368647168,-2400.0,0.00034986,120]
[374596481,1753368647177,-1920.0,0.00034986,120]
[374596484,1753368647187,-237.25003985,0.00034986,7]
[374596486,1753368647197,-206.58693301,0.00034986,7]
[374596488,1753368647206,-1615.00424835,0.00034988,2]
[374596489,1753368647216,-229.009158,0.0003499,7]
[374596492,1753368647225,-151.0,0.0003499,7]
[374596493,1753368647235,-151.0,0.0003499,7]
[374596495,1753368647244,-151.0,0.0003499,7]
[374596497,1753368647253,-151.0,0.0003499,7]
[374596499,1753368647262,-151.0,0.0003499,7]
[374596501,1753368647272,-151.0,0.0003499,7]
[374596503,1753368647282,-151.0,0.0003499,7]
[374596505,1753368647291,-151.0,0.0003499,7]
[374596508,1753368647300,-151.0,0.0003499,7]
[374596509,1753368647311,-151.0,0.0003499,7]
[374596511,1753368647320,-151.0,0.0003499,7]
[374596513,1753368647330,-151.0,0.0003499,7]
[374596515,1753368647339,-256.682001,0.0003499,7]
[374596517,1753368647348,-151.0,0.0003499,7]
[374596519,1753368647358,-150.0,0.00034991,2]
[374596521,1753368647367,-156.29448154,0.00034993,30]
[374596523,1753368647377,-156.29448154,0.00034993,30]
[374596525,1753368647387,-156.29448154,0.00034993,30]
[374596527,1753368647396,-156.29448154,0.00034993,30]
[374596528,1753368647406,-156.29448154,0.00034993,30]
[374596529,1753368647416,-156.29448154,0.00034993,30]
[374596530,1753368647426,-156.29448154,0.00034993,30]
[374596531,1753368647435,-156.29448154,0.00034993,30]
[374596532,1753368647445,-156.29448154,0.00034993,30]
[374596533,1753368647454,-156.29448154,0.00034993,30]
[374596534,1753368647463,-156.29448154,0.00034993,30]
[374596535,1753368647473,-156.29448154,0.00034993,30]
[374596536,1753368647483,-156.29448154,0.00034993,30]
[374596537,1753368647493,-156.29,0.00034993,30]
[374596538,1753368647503,-255.28098652,0.00034993,30]
[374596539,1753368647512,-255.28098652,0.00034993,30]
[374596540,1753368647524,-255.28098652,0.00034993,30]
[374596541,1753368647534,-255.28098652,0.00034993,30]
[374596542,1753368647543,-255.28098652,0.00034993,30]
[374596543,1753368647553,-255.28098652,0.00034993,30]
[374596544,1753368647565,-255.28098652,0.00034993,30]
[374596545,1753368647575,-255.28098652,0.00034993,30]
[374596546,1753368647584,-255.28098652,0.00034993,30]
[374596547,1753368647595,-255.28098652,0.00034993,30]
[374596548,1753368647605,-255.28098652,0.00034993,30]
[374596549,1753368647615,-255.28098652,0.00034993,30]
[374596550,1753368647624,-255.28098652,0.00034993,30]
[374596551,1753368647634,-255.28098652,0.00034993,30]
[374596552,1753368647643,-255.28098652,0.00034993,30]
[374596553,1753368647653,-255.28098652,0.00034993,30]
[374596554,1753368647663,-255.28098652,0.00034993,30]
[374596555,1753368647672,-255.28098652,0.00034993,30]
[374596556,1753368647681,-150.66225789,0.00034993,30]
[374596557,1753368647691,-150.66225789,0.00034993,30]
[374596558,1753368647700,-150.66225789,0.00034993,30]
[374596559,1753368647710,-150.66225789,0.00034993,30]
[374596560,1753368647720,-150.66225789,0.00034993,30]
[374596561,1753368647729,-150.66225789,0.00034993,30]
[374596562,1753368647738,-150.66225789,0.00034993,30]
[374596563,1753368647747,-150.66225789,0.00034993,30]
[374596564,1753368647757,-150.66225789,0.00034993,30]
[374596565,1753368647766,-150.66225789,0.00034993,30]
[374596566,1753368647776,-150.66,0.00034993,30]
[374596567,1753368647785,-193.34989762,0.00034993,30]
[374596568,1753368647794,-193.34989762,0.00034993,30]
[374596569,1753368647803,-193.34989762,0.00034993,30]
[374596570,1753368647814,-193.34989762,0.00034993,30]
[374596571,1753368647824,-193.34989762,0.00034993,30]
[374596572,1753368647833,-193.34989762,0.00034993,30]
[374596573,1753368647843,-193.34989762,0.00034993,30]
[374596574,1753368647853,-193.34989762,0.00034993,30]
[374596575,1753368647862,-193.34989762,0.00034993,30]
[374596576,1753368647871,-193.34989762,0.00034993,30]
[374596577,1753368647882,-193.34989762,0.00034993,30]
[374596578,1753368647896,-193.34989762,0.00034993,30]
[374596579,1753368647905,-193.34989762,0.00034993,30]
[374596580,1753368647915,-193.34989762,0.00034993,30]
[374596581,1753368647926,-193.34989762,0.00034993,30]
[374596582,1753368647936,-193.34989762,0.00034993,30]
[374596583,1753368647945,-193.34989762,0.00034993,30]
[374596584,1753368647955,-193.34989762,0.00034993,30]
[374596585,1753368647965,-150.78599771,0.00034993,30]
[374596586,1753368647974,-150.78599771,0.00034993,30]
[374596587,1753368647984,-150.78599771,0.00034993,30]
[374596588,1753368647994,-150.78599771,0.00034993,30]
[374596589,1753368648003,-150.78599771,0.00034993,30]
[374596590,1753368648013,-150.78599771,0.00034993,30]
[374596591,1753368648023,-150.78599771,0.00034993,30]
[374596592,1753368648033,-150.78599771,0.00034993,30]
[374596593,1753368648043,-150.78599771,0.00034993,30]
[374596594,1753368648054,-150.78599771,0.00034993,30]
[374596595,1753368648066,-150.78599771,0.00034993,30]
[374596596,1753368648075,-150.78599771,0.00034993,30]
[374596597,1753368648086,-150.78599771,0.00034993,30]
[374596598,1753368648096,-150.78599771,0.00034993,30]
[374596599,1753368648106,-150.78599771,0.00034993,30]
[374596600,1753368648116,-150.78599771,0.00034993,30]
[374596601,1753368648126,-150.78599771,0.00034993,30]
[374596602,1753368648135,-150.78,0.00034993,30]
[374596603,1753368648145,-316.65059519,0.00034993,30]
[374596604,1753368648155,-316.65059519,0.00034993,30]
[374596605,1753368648164,-316.65059519,0.00034993,30]
[374596606,1753368648174,-316.65059519,0.00034993,30]
[374596607,1753368648183,-316.65059519,0.00034993,30]
[374596608,1753368648193,-316.65059519,0.00034993,30]
[374596609,1753368648203,-316.65059519,0.00034993,30]
[374596610,1753368648213,-316.65059519,0.00034993,30]
[374596611,1753368648223,-316.65059519,0.00034993,30]
[374596612,1753368648233,-316.65059519,0.00034993,30]
[374596613,1753368648243,-316.65059519,0.00034993,30]
[374596614,1753368648252,-316.65059519,0.00034993,30]
[374596615,1753368648262,-316.65059519,0.00034993,30]
[374596616,1753368648272,-316.65059519,0.00034993,30]
[374596617,1753368648282,-316.65059519,0.00034993,30]
[374596618,1753368648292,-316.65059519,0.00034993,30]
[374596619,1753368648302,-316.65059519,0.00034993,30]
[374596620,1753368648314,-316.65059519,0.00034993,30]
[374596621,1753368648324,-3696.69266291,0.00034993,2]
[374596622,1753368648334,-5772.04510236,0.00034993,2]
[374596623,1753368648344,-300.0,0.00034994,10]
[374596624,1753368648355,-151.0,0.00034995,7]
[374596625,1753368648366,-152.075177,0.00034995,7]
[374596626,1753368648377,-151.0,0.00034995,7]
[374596627,1753368648390,-151.0,0.00034995,7]
[374596628,1753368648400,-153.293925,0.00034995,7]
[374596629,1753368648410,-151.0,0.00034995,7]
[374596630,1753368648421,-151.0,0.00034995,7]
[374596631,1753368648431,-207.196132,0.00034995,7]
[374596632,1753368648441,-207.196132,0.00034995,7]
[374596633,1753368648451,-53829.7891275,0.00034995,2]
[374596634,1753368648461,-52267.2335185,0.00034995,2]
[374596635,1753368648471,-769.3751712,0.00034995,2]
[374596636,1753368648481,-151.0,0.00034995,7]
[374596637,1753368648491,-151.0,0.00034995,7]
[374596638,1753368648501,-10416.7995373,0.00034995,2]
[374596639,1753368648511,-67262.4918237,0.00034995,2]
[374596640,1753368648521,-3260.898427,0.00034995,2]
[374596641,1753368648531,-2898.7165944,0.00034995,2]
[374596642,1753368648542,-151.0,0.00034995,7]
[374596643,1753368648553,-300.0,0.00034998,10]
[374596644,1753368648565,-300.0,0.00034998,10]
[374596645,1753368648575,-300.0,0.00034999,10]
[374596646,1753368648586,-666.0,0.00034999,10]
[374596647,1753368648596,-300.0,0.00034999,10]
[374596648,1753368648605,-666.0,0.00034999,10]
[374596649,1753368648615,-300.0,0.00034999,10]
[374596650,1753368648626,-300.0,0.00034999,10]
[374596651,1753368648636,-150.0,0.00034999,2]
[374596652,1753368648646,-151.0,0.00034999,2]
[374596653,1753368648656,-165.71351962,0.00034999,2]
[374596654,1753368648666,-1000.0,0.00034999,2]
[374596655,1753368648676,-215.317448,0.00034999,7]
[374596656,1753368648938,-215.317448,0.00034999,7]
[374596657,1753368648978,-397.362853,0.00034999,7]
[374596658,1753368648988,-151.0,0.00034999,7]
[374596659,1753368648998,-151.0,0.00034999,7]
[374596660,1753368649007,-151.0,0.00034999,7]
[374596661,1753368649017,-9216.856,0.00034999,11]
[374596662,1753368649027,-151.0,0.00034999,11]
[374596663,1753368649037,-9557.879672,0.00034999,11]
[374596664,1753368649048,-9911.52121986,0.00034999,11]
[374596665,1753368649059,-151.0,0.00034999,11]
[374596666,1753368649069,-151.0,0.00034999,11]
[374596667,1753368649079,-10278.247505,0.00034999,11]
[374596668,1753368649090,-151.0,0.00034999,11]
[374596669,1753368649101,-600.0,0.00034999,11]
[374596670,1753368649111,-10658.54266268,0.00034999,11]
[374596671,1753368649120,-151.0,0.00034999,11]
[374596672,1753368649131,-600.0,0.00034999,11]
[374596673,1753368649141,-151.0,0.00034999,11]
[374596674,1753368649151,-600.0,0.00034999,11]
[374596675,1753368649161,-11052.9087412,0.00034999,11]
[374596676,1753368649171,-151.0,0.00034999,11]
[374596677,1753368649181,-346.92554585,0.00034999,11]
[374596678,1753368649191,-220.18048397,0.00034999,11]
[374596679,1753368649201,-600.0,0.00034999,11]
[374596680,1753368649212,-2294.6809157,0.00034999,11]
[374596681,1753368649221,-151.0,0.00034999,11]
[374596682,1753368649232,-600.0,0.00034999,11]
[374596683,1753368649242,-372.59803623,0.00034999,11]
[374596684,1753368649253,-600.0,0.00034999,11]
[374596685,1753368649262,-7000.0,0.00034999,2]
[374596686,1753368649272,-233.826,0.00034999,11]
[374596687,1753368649283,-151.0,0.00034999,11]
[374596688,1753368649292,-422.17,0.00034999,11]
[374596689,1753368649302,-198.0,0.00034999,11]
[374596690,1753368649314,-174.59849108,0.00034999,11]
[374596691,1753368649324,-231.28369723,0.00034999,11]
[374596692,1753368649335,-239.84119403,0.00034999,11]
[374596693,1753368649346,-248.71531821,0.00034999,11]
[374596694,1753368649356,-257.91778498,0.00034999,11]
[374596695,1753368649366,-267.46074303,0.00034999,11]
[374596696,1753368649376,-277.35679052,0.00034999,11]
[374596697,1753368649387,-287.61899177,0.00034999,11]
[374596698,1753368649397,-298.26089446,0.00034999,11]
[374596699,1753368649407,-309.29654756,0.00034999,11]
[374596700,1753368649417,-320.74051982,0.00034999,11]
[374596701,1753368649428,-332.60791905,0.00034999,11]
[374596702,1753368649439,-344.91441206,0.00034999,11]
[374596703,1753368649449,-357.6762453,0.00034999,11]
[374596704,1753368649459,-370.91026638,0.00034999,11]
[374596705,1753368649469,-384.63394623,0.00034999,11]
[374596706,1753368649479,-398.86540225,0.00034999,11]
[374596707,1753368649490,-151.0,0.00034999,7]
[374596708,1753368649500,-743.393678,0.00034999,7]
[374596709,1753368649511,-743.393678,0.00034999,7]
[374596710,1753368649522,-151.0,0.00034999,7]
[374596711,1753368649532,-275.546175,0.00034999,7]
[374596712,1753368649543,-2037895.3608521,0.00034999,17]
[374596713,1753368652634,-354350.5248375,0.00034999,17]
[374596714,1753368652664,-72966.65763674,0.00034999,61]
[374596715,1753368652675,-8024.86354771,0.00035,5]
[374596716,1753368652684,-20000.0,0.00035,3]
[374596717,1753368652694,-8000.0,0.00035,120]
[374596718,1753368652704,-2762.83130528,0.00035,120]
[374596719,1753368652714,-1999.999999,0.00035,30]
[374596720,1753368652723,-1000.0,0.00035,120]
[374596721,1753368652734,-13237.6026489,0.00035,120]
[374596722,1753368652744,-156.57600235,0.00035,30]
[374596723,1753368652753,-1231.8262965,0.00035,120]
[374596724,1753368652764,-2000.0,0.00035,7]
[374596725,1753368652774,-503.17471436,0.00035,28]
[374596726,1753368652784,-3880.7280963,0.00035,120]
[374596727,1753368652794,-767.0,0.00035,30]
[374596728,1753368652803,-681.0,0.00035,30]